bitfinex/quotes_SOLUSD_20250704
["timestamp","ask_amount","ask_price","bid_price","bid_amount"]
[1751635368748,13.99367367,150.41,150.4,0.1]
[1751635369088,7.34517956,150.41,150.4,0.1]
[1751635370863,6.64737489,150.44,150.4,0.1]
[1751635371054,7.34517956,150.43,150.4,6.74879091]
[1751635371259,7.34517956,150.44,150.4,6.74879091]
[1751635371471,7.34517956,150.44,150.4,14.09397047]
[1751635372061,7.34517956,150.43,150.4,6.74879091]
[1751635372826,7.34517956,150.44,150.4,14.09397047]
[1751635373079,7.34517956,150.44,150.4,6.74879091]
[1751635373991,7.34517956,150.44,150.4,14.09397047]
[1751635374666,7.34517956,150.46,150.41,7.34517956]
[1751635374866,7.34517956,150.45,150.41,7.34517956]
[1751635375284,7.34517956,150.45,150.4,30.71631089]
[1751635377192,6.64577498,150.48,150.4,30.71631089]
[1751635377370,7.34517956,150.45,150.4,30.71631089]
[1751635377576,7.34517956,150.45,150.42,6.64805212]
[1751635379401,7.34517956,150.45,150.41,6.64849411]
[1751635379697,7.34517956,150.45,150.41,13.99367367]
[1751635380310,7.34517956,150.45,150.41,6.64849411]
[1751635380800,7.34517956,150.44,150.41,6.64849411]
[1751635381313,7.34517956,150.43,150.41,6.64849411]
[1751635382105,13.99058094,150.48,150.41,6.64849411]
[1751635382307,7.34517956,150.43,150.41,6.64849411]
[1751635382804,7.34517956,150.43,150.4,6.74877073]
[1751635383579,6.64584302,150.47,150.4,6.74877073]
[1751635383784,7.34517956,150.43,150.4,6.74877073]
[1751635384202,7.34517956,150.44,150.4,6.74877073]
[1751635385195,7.34517956,150.43,150.4,6.74877073]
[1751635385801,7.34517956,150.42,150.4,6.74877073]
[1751635387683,6.64584302,150.47,150.4,6.74877073]
[1751635387994,7.34517956,150.42,150.4,6.74877073]
[1751635388704,7.34517956,150.43,150.4,6.74877073]
[1751635389103,6.64605125,150.47,150.4,14.09395029]
[1751635389280,7.34517956,150.45,150.41,7.34517956]
[1751635390278,7.34517956,150.45,150.42,6.64805212]
[1751635390776,6.64605125,150.47,150.42,6.64805212]
[1751635390777,7.34517956,150.44,150.42,6.64805212]
[1751635392097,7.34517956,150.44,150.41,6.64849411]
[1751635392499,6.64645133,150.46,150.41,6.64849411]
[1751635392700,7.34517956,150.44,150.41,6.64849411]
[1751635394384,7.34517956,150.43,150.41,6.64849411]
[1751635395617,7.34517956,150.44,150.41,6.64849411]
[1751635395911,7.34517956,150.47,150.43,7.34517956]
[1751635397097,7.34517956,150.47,150.44,6.6471683]
[1751635397811,7.34517956,150.48,150.44,6.6471683]
[1751635398111,7.34517956,150.47,150.44,6.6471683]
[1751635398290,12.87869467,150.49,150.44,6.6471683]
[1751635398485,7.34517956,150.47,150.44,6.6471683]
[1751635398688,7.34517956,150.47,150.43,6.64743523]
[1751635399599,12.87869467,150.49,150.43,6.64743523]
[1751635399800,7.34517956,150.46,150.43,6.64743523]
[1751635400189,7.34517956,150.45,150.42,6.64786006]
[1751635401817,7.34517956,150.44,150.42,6.64786006]
[1751635402839,7.34517956,150.44,150.41,6.64849411]
[1751635403314,13.99242822,150.44,150.4,0.1]
[1751635403612,7.34517956,150.43,150.4,6.74889979]
[1751635403807,7.34517956,150.44,150.4,6.74889979]
[1751635404391,7.34517956,150.43,150.4,6.74889979]
[1751635404611,6.64584302,150.47,150.4,6.74889979]
[1751635404912,7.34517956,150.43,150.4,6.74889979]
[1751635405110,7.34517956,150.45,150.4,14.09407935]
[1751635405298,7.34517956,150.44,150.4,14.09407935]
[1751635405801,7.34517956,150.44,150.4,6.74889979]
[1751635406921,7.34517956,150.43,150.4,6.74889979]
[1751635407511,6.64646151,150.46,150.4,6.74889979]
[1751635407512,7.34517956,150.42,150.4,6.74889979]
[1751635407718,7.34517956,150.41,150.4,0.1]
[1751635411007,13.99367367,150.41,150.4,0.1]
[1751635413806,7.34517956,150.41,150.4,0.1]
[1751635414508,12.94608213,150.44,150.4,0.1]
[1751635414707,7.34517956,150.41,150.4,0.1]
[1751635415098,12.94608213,150.44,150.4,0.1]
[1751635415301,7.34517956,150.41,150.4,0.1]
[1751635416308,12.94608213,150.44,150.4,0.1]
[1751635416607,7.34517956,150.42,150.4,6.74893617]
[1751635416808,6.2986,150.44,150.4,6.74893617]
[1751635417017,7.34517956,150.43,150.4,6.74893617]
[1751635418013,153.74517956,150.45,150.4,14.09411573]
[1751635418207,153.74517956,150.45,150.4,30.71645615]
[1751635419327,153.74517956,150.45,150.41,7.34517956]
[1751635419525,6.6488,150.48,150.43,7.34517956]
[1751635419825,7.54517956,150.49,150.45,7.34517956]
[1751635420926,0.2,150.49,150.48,7.34517956]
[1751635421126,0.2,150.49,150.48,13.99058094]
[1751635421311,0.2,150.49,150.48,6.64540138]
[1751635422912,0.2,150.49,150.47,7.34517956]
[1751635422913,0.2,150.49,150.47,6.64577626]
[1751635423110,7.54517956,150.49,150.47,6.64577626]
[1751635423315,7.54517956,150.49,150.46,6.64628472]
[1751635423620,7.34517956,150.48,150.46,6.64628472]
[1751635423828,7.54517956,150.49,150.46,6.64628472]
[1751635425224,7.54517956,150.49,150.45,6.64659293]
[1751635425225,7.34517956,150.47,150.45,6.64659293]
[1751635426545,7.34517956,150.48,150.45,6.64659293]
[1751635426916,7.34517956,150.47,150.44,6.64714061]
[1751635427332,0.2,150.49,150.44,6.64714061]
[1751635427530,7.34517956,150.47,150.44,6.64714061]
[1751635428411,0.2,150.49,150.44,6.64714061]
[1751635428412,0.2,150.49,150.44,13.99232017]
[1751635428606,7.34517956,150.48,150.44,13.99232017]
[1751635429236,7.34517956,150.48,150.44,6.64714061]
[1751635429409,7.34517956,150.48,150.44,13.99232017]
[1751635430840,7.34517956,150.48,150.44,6.64714061]
[1751635431040,7.34517956,150.47,150.44,6.64714061]
[1751635437048,6.84501194,150.49,150.42,7.34517956]
[1751635437049,7.34517956,150.46,150.42,7.34517956]
[1751635437346,0.2,150.49,150.4,0.1]
[1751635437347,7.34517956,150.43,150.4,0.1]
[1751635438030,7.34517956,150.43,150.41,6.64845921]
[1751635439142,7.34517956,150.44,150.41,6.64845921]
[1751635439722,6.6455557,150.48,150.41,13.99363877]
[1751635440037,7.34517956,150.45,150.41,13.99363877]
[1751635440828,7.34517956,150.45,150.41,6.64845921]
[1751635442922,7.34517956,150.44,150.41,6.64845921]
[1751635445341,6.64632459,150.46,150.4,0.1]
[1751635445342,7.34517956,150.42,150.4,0.1]
[1751635445939,7.34517956,150.41,150.4,0.1]
[1751635446542,13.99367367,150.41,150.4,0.1]
[1751635447333,21.33885323,150.41,150.4,0.1]
[1751635447650,22.89395323,150.41,150.4,0.1]
[1751635448038,29.02045323,150.41,150.4,0.1]
[1751635448438,167.73929529,150.4,150.38,0.1]
[1751635448642,153.74517956,150.39,150.37,0.1]
[1751635448833,41.44517956,150.38,150.37,0.1]
[1751635451058,48.09500001,150.38,150.37,0.1]
[1751635452145,7.34517956,150.37,150.36,0.1]
[1751635453150,13.99544224,150.37,150.36,0.1]
[1751635453942,38.66789895,150.37,150.27,13.99969794]
[1751635454149,7.34517956,150.35,150.28,6.65389991]
[1751635454635,7.34517956,150.35,150.27,6.65450973]
[1751635454956,7.34517956,150.35,150.26,13.77494913]
[1751635455137,7.34517956,150.35,150.27,6.65467625]
[1751635455338,37.96937474,150.35,150.26,7.12]
[1751635455530,37.96937474,150.35,150.25,1.6281]
[1751635455531,7.34517956,150.27,150.25,1.6281]
[1751635455729,7.34517956,150.27,150.23,13.72577956]
[1751635455730,7.34517956,150.27,150.24,6.65601703]
[1751635455933,7.34517956,150.29,150.24,6.65601703]
[1751635456163,7.34517956,150.29,150.24,14.00119659]
[1751635456837,7.34517956,150.28,150.24,14.00119659]
[1751635457158,7.34517956,150.28,150.24,6.65601703]
[1751635457460,7.34517956,150.27,150.24,6.65601703]
[1751635459342,6.65338944,150.3,150.24,6.65601703]
[1751635459545,7.34517956,150.27,150.24,6.65601703]
[1751635460551,7.34517956,150.32,150.22,6.6569032]
[1751635460552,7.34517956,150.25,150.22,6.6569032]
[1751635461435,7.9986,150.31,150.22,14.00208276]
[1751635461862,7.9986,150.31,150.23,7.34517956]
[1751635461863,7.34517956,150.27,150.23,7.34517956]
[1751635462156,6.493,150.31,150.22,6.6569032]
[1751635462365,7.34517956,150.29,150.25,7.34517956]
[1751635463038,7.34517956,150.28,150.24,7.34517956]
[1751635464042,7.34517956,150.28,150.22,23.29916122]
[1751635464249,7.34517956,150.28,150.25,6.65557404]
[1751635467159,7.34517956,150.3,150.26,7.34517956]
[1751635467356,7.34517956,150.27,150.22,23.29908236]
[1751635467542,7.34517956,150.26,150.22,6.6569032]
[1751635467740,48.13766221,150.32,150.22,14.00208276]
[1751635467963,48.13766221,150.32,150.24,7.34517956]
[1751635468165,7.34517956,150.28,150.24,7.34517956]
[1751635468361,7.34517956,150.28,150.22,6.6569032]
[1751635468568,7.34517956,150.28,150.24,7.34517956]
[1751635468965,7.34517956,150.28,150.25,6.65557404]
[1751635469856,7.34517956,150.29,150.25,14.0007536]
[1751635470162,7.34517956,150.29,150.25,6.65557404]
[1751635470342,7.34517956,150.29,150.25,14.0007536]
[1751635470964,7.34517956,150.26,150.22,6.6569032]
[1751635471155,7.34517956,150.25,150.22,6.6569032]
[1751635472141,146.4,150.34,150.24,7.34517956]
[1751635472457,7.34517956,150.29,150.25,7.34517956]
[1751635472648,7.34517956,150.3,150.25,7.34517956]
[1751635472969,7.34517956,150.3,150.26,7.34517956]
[1751635473142,7.34517956,150.29,150.22,23.29916122]
[1751635473342,7.34517956,150.29,150.25,7.34517956]
[1751635473543,7.34517956,150.3,150.25,7.34517956]
[1751635473772,7.34517956,150.3,150.26,6.6551311]
[1751635474675,6.6529665,150.31,150.21,1.6316]
[1751635474676,7.34517956,150.27,150.21,18.2741611]
[1751635474846,7.34517956,150.26,150.22,7.34517956]
[1751635475677,7.34517956,150.23,150.21,8.28891735]
[1751635475973,7.34517956,150.25,150.21,15.63409691]
[1751635476352,6.5422,150.29,150.21,15.63409691]
[1751635476690,7.34517956,150.28,150.23,7.34517956]
[1751635476871,146.4,150.31,150.21,24.9322833]
[1751635477045,146.4,150.31,150.24,7.34517956]
[1751635477241,7.34517956,150.27,150.23,7.34517956]
[1751635477553,7.34517956,150.27,150.21,24.9322833]
[1751635477751,7.34517956,150.26,150.22,7.34517956]
[1751635478043,7.34517956,150.25,150.21,24.9322833]
[1751635478252,7.34517956,150.24,150.21,8.28891735]
[1751635478744,6.65369424,150.3,150.18,6.65867625]
[1751635478745,7.34517956,150.22,150.18,6.65867625]
[1751635478947,7.34517956,150.21,150.18,6.65867625]
[1751635479850,7.34517956,150.2,150.18,6.65867625]
[1751635480050,7.34517956,150.19,150.17,6.75900112]
[1751635480772,7.34517956,150.2,150.17,6.75900112]
[1751635481469,153.05473841,150.27,150.19,7.34517956]
[1751635481864,7.34517956,150.22,150.17,6.75900112]
[1751635482064,7.34517956,150.22,150.18,7.34517956]
[1751635482246,153.05473841,150.27,150.17,6.75900112]
[1751635482452,7.34517956,150.2,150.17,6.75900112]
[1751635482668,7.34517956,150.19,150.17,6.75900112]
[1751635482970,7.34517956,150.18,150.17,6.75900112]
[1751635483273,7.34517956,150.19,150.17,6.75900112]
[1751635484072,7.34517956,150.2,150.17,6.75900112]
[1751635484776,7.34517956,150.21,150.17,14.10418068]
[1751635485189,7.34517956,150.21,150.17,23.40680028]
[1751635485479,146.4,150.27,150.17,23.40680028]
[1751635485480,7.34517956,150.2,150.17,23.40680028]
[1751635486378,7.34517956,150.21,150.17,23.40680028]
[1751635486757,7.34517956,150.21,150.17,30.75197984]
[1751635486957,7.34517956,150.22,150.17,30.75197984]
[1751635487465,153.0548398,150.27,150.17,30.75197984]
[1751635487666,153.0548398,150.27,150.18,7.34517956]
[1751635487667,7.34517956,150.23,150.18,7.34517956]
[1751635487968,7.34517956,150.22,150.17,30.75197984]
[1751635489272,7.34517956,150.22,150.18,7.34517956]
[1751635489880,6.65527523,150.26,150.18,7.34517956]
[1751635490177,7.34517956,150.22,150.18,7.34517956]
[1751635491187,7.34517956,150.22,150.19,6.6582329]
[1751635492570,6.65563041,150.25,150.19,6.6582329]
[1751635492771,7.34517956,150.22,150.19,6.6582329]
[1751635493364,7.34517956,150.21,150.18,6.65867625]
[1751635494062,7.34517956,150.22,150.18,6.65867625]
[1751635496793,7.34517956,150.21,150.18,6.65867625]
[1751635497671,7.34517956,150.22,150.18,6.65867625]
[1751635498276,7.34517956,150.22,150.18,14.00385581]
[1751635498689,7.34517956,150.22,150.18,30.65054644]
[1751635498988,7.34517956,150.23,150.18,30.65054644]
[1751635499188,7.34517956,150.21,150.18,6.65867625]
[1751635499484,6.65530616,150.26,150.18,6.65867625]
[1751635499674,7.34517956,150.23,150.19,7.34517956]
[1751635500066,7.34517956,150.23,150.2,6.65778961]
[1751635500667,7.34517956,150.22,150.2,6.15778961]
[1751635501788,6.6551311,150.26,150.19,6.6582329]
[1751635501966,7.34517956,150.22,150.19,6.6582329]
[1751635502470,6.6551311,150.26,150.19,6.6582329]
[1751635502680,7.34517956,150.22,150.19,6.6582329]
[1751635504579,7.34517956,150.22,150.18,16.64669063]
[1751635504580,7.34517956,150.22,150.18,30.65054644]
[1751635504781,7.34517956,150.24,150.2,7.34517956]
[1751635504978,7.34517956,150.24,150.18,23.30536688]
[1751635505191,7.34517956,150.24,150.2,7.34517956]
[1751635505693,7.34517956,150.24,150.18,23.30536688]
[1751635505897,7.34517956,150.24,150.2,7.34517956]
[1751635506300,7.34517956,150.24,150.18,6.65867625]
[1751635506484,6.6551311,150.26,150.18,6.65867625]
[1751635506792,6.6551311,150.26,150.18,14.00385581]
[1751635506999,7.34517956,150.22,150.18,14.00385581]
[1751635507601,7.34517956,150.22,150.18,6.65867625]
[1751635507769,7.34517956,150.21,150.18,6.65867625]
[1751635507974,7.34517956,150.24,150.17,0.1]
[1751635508298,7.34517956,150.19,150.17,0.1]
[1751635508498,7.34517956,150.24,150.17,6.75902748]
[1751635508995,7.34517956,150.2,150.17,6.75902748]
[1751635510297,7.34517956,150.21,150.17,14.10420704]
[1751635510475,163.03680859,150.27,150.17,14.10420704]
[1751635510681,7.34517956,150.21,150.17,14.10420704]
[1751635510896,7.34517956,150.2,150.17,6.75902748]
[1751635512618,7.34517956,150.22,150.18,7.34517956]
[1751635513310,7.34517956,150.22,150.17,23.40682664]
[1751635513311,7.34517956,150.23,150.19,14.00341246]
[1751635514102,146.4,150.26,150.2,7.34517956]
[1751635514275,146.4,150.26,150.21,7.34517956]
[1751635514476,7.34517956,150.25,150.21,7.34517956]
[1751635515090,7.34517956,150.25,150.19,23.30381516]
[1751635515304,7.34517956,150.25,150.22,6.6569032]
[1751635515606,7.34517956,150.24,150.22,6.6569032]
[1751635515779,146.4,150.26,150.22,6.6569032]
[1751635516492,7.34517956,150.23,150.22,6.6569032]
[1751635517096,7.34517956,150.23,150.2,6.65778961]
[1751635517290,153.05517071,150.26,150.19,6.6582329]
[1751635517507,7.34517956,150.22,150.19,6.6582329]
[1751635519703,7.34517956,150.23,150.19,14.00341246]
[1751635519907,146.4,150.26,150.2,7.34517956]
[1751635520120,7.34517956,150.24,150.2,7.34517956]
[1751635521510,7.34517956,150.25,150.2,7.34517956]
[1751635521711,7.34517956,150.25,150.21,7.34517956]
[1751635521915,146.4,150.26,150.21,7.34517956]
[1751635522085,153.74517956,150.26,150.22,7.34517956]
[1751635522486,7.34517956,150.25,150.21,7.34517956]
[1751635523104,7.34517956,150.25,150.22,6.6569032]
[1751635523417,7.34517956,150.24,150.22,6.6569032]
[1751635523719,7.34517956,150.25,150.22,6.6569032]
[1751635525023,153.5,150.31,150.23,7.34517956]
[1751635525200,7.34517956,150.29,150.24,7.34517956]
[1751635525397,7.34517956,150.28,150.24,7.34517956]
[1751635526021,7.34517956,150.27,150.23,7.34517956]
[1751635526200,7.34517956,150.27,150.24,6.65601703]
[1751635528020,7.34517956,150.28,150.24,6.65601703]
[1751635528223,7.34517956,150.29,150.24,30.64123918]
[1751635528722,7.34517956,150.28,150.24,30.64123918]
[1751635529314,0.2,150.3,150.24,30.64123918]
[1751635529514,7.34517956,150.28,150.24,30.64123918]
[1751635529709,7.34517956,150.28,150.24,14.00119659]
[1751635530932,7.34517956,150.27,150.24,6.65601703]
[1751635531224,7.34517956,150.26,150.24,6.65601703]
[1751635531725,7.34517956,150.26,150.23,6.65629169]
[1751635532126,7.34517956,150.25,150.23,6.65629169]
[1751635533837,7.34517956,150.25,150.22,6.6569032]
[1751635536225,7.34517956,150.24,150.22,6.6569032]
[1751635536424,7.34517956,150.24,150.21,6.65718529]
[1751635539513,7.34517956,150.24,150.19,6.6582329]
[1751635539718,7.34517956,150.24,150.2,7.34517956]
[1751635540020,7.34517956,150.24,150.19,6.6582329]
[1751635540223,7.34517956,150.24,150.2,7.34517956]
[1751635541739,7.34517956,150.24,150.21,6.65734638]
[1751635543743,7.34517956,150.25,150.21,14.00252594]
[1751635544527,7.34517956,150.26,150.22,7.34517956]
[1751635545247,7.34517956,150.25,150.21,7.34517956]
[1751635546339,7.34517956,150.25,150.19,23.30381516]
[1751635546340,7.34517956,150.28,150.24,7.34517956]
[1751635546734,6.85351797,150.3,150.23,7.34517956]
[1751635546735,7.34517956,150.27,150.23,7.34517956]
[1751635547635,7.34517956,150.27,150.24,6.65601703]
[1751635548137,0.2,150.3,150.24,6.65601703]
[1751635548338,7.34517956,150.28,150.24,14.00119659]
[1751635549450,7.34517956,150.27,150.24,6.65601703]
[1751635550655,0.2,150.3,150.24,6.65601703]
[1751635551053,7.34517956,150.26,150.24,6.65601703]
[1751635552155,7.34517956,150.26,150.23,6.65646009]
[1751635552854,6.65406597,150.29,150.23,6.65646009]
[1751635553061,7.34517956,150.26,150.23,6.65646009]
[1751635553557,7.32175611,150.26,150.23,6.65646009]
[1751635555250,6.8534766,150.3,150.23,6.65646009]
[1751635555550,7.34517956,150.29,150.25,7.34517956]
[1751635555729,7.54517956,150.3,150.25,7.34517956]
[1751635555932,7.34517956,150.29,150.25,7.34517956]
[1751635556128,7.34517956,150.29,150.23,24.86561032]
[1751635556350,7.34517956,150.29,150.24,7.34517956]
[1751635556757,7.34517956,150.28,150.23,32.21078988]
[1751635556943,7.34517956,150.27,150.23,32.21078988]
[1751635559253,7.34517956,150.27,150.23,24.86561032]
[1751635559569,7.34517956,150.27,150.23,32.21078988]
[1751635560545,0.2,150.3,150.24,7.34517956]
[1751635560743,0.2,150.3,150.26,7.34517956]
[1751635560944,7.54517956,150.3,150.26,7.34517956]
[1751635561865,0.2,150.3,150.27,7.34517956]
[1751635562035,0.2,150.3,150.28,7.34517956]
[1751635562762,0.2,150.3,150.29,6.65380264]
[1751635570673,0.2,150.3,150.25,6.65557404]
[1751635571248,7.34517956,150.29,150.25,14.0007536]
[1751635571451,7.54517956,150.3,150.26,7.34517956]
[1751635572144,7.54517956,150.3,150.25,14.0007536]
[1751635572348,7.34517956,150.29,150.25,14.0007536]
[1751635573975,0.2,150.3,150.26,7.34517956]
[1751635574464,0.2,150.3,150.27,7.34517956]
[1751635574873,0.2,150.3,150.28,6.6542454]
[1751635576551,0.2,150.3,150.29,7.34517956]
[1751635576751,0.2,150.3,150.29,15.5133822]
[1751635577057,1e-08,150.3,150.29,15.5133822]
[1751635577454,1e-08,150.3,150.29,20.79104706]
[1751635578968,1e-08,150.3,150.29,15.5133822]
[1751635583197,1e-08,150.34,150.29,72.76208162]
[1751635583392,1e-08,150.35,150.33,7.34517956]
[1751635583567,1e-08,150.37,150.32,7.34517956]
[1751635584187,1e-08,150.37,150.36,7.34517956]
[1751635585074,1e-08,150.37,150.36,6.65070497]
[1751635585266,1e-08,150.37,150.36,13.99588453]
[1751635585583,1e-08,150.37,150.32,7.34517956]
[1751635585584,7.34517957,150.37,150.32,7.34517956]
[1751635587091,1e-08,150.37,150.33,6.65203219]
[1751635587267,1e-08,150.37,150.34,7.34517956]
[1751635587462,1e-08,150.37,150.33,13.99721175]
[1751635587777,7.34517957,150.37,150.33,13.99721175]
[1751635589671,1e-08,150.37,150.33,13.99721175]
[1751635589875,7.34517957,150.37,150.33,13.99721175]
[1751635591896,1e-08,150.37,150.33,13.99721175]
[1751635592103,7.34517957,150.37,150.33,13.99721175]
[1751635592997,7.34517956,150.35,150.33,6.65203219]
[1751635594187,1e-08,150.37,150.32,6.65247472]
[1751635594396,7.34517956,150.36,150.32,6.65247472]
[1751635595802,1e-08,150.37,150.32,13.99765428]
[1751635596102,1e-08,150.37,150.34,7.34517956]
[1751635596883,1e-08,150.37,150.32,23.28366152]
[1751635597082,7.34517957,150.37,150.33,7.34517956]
[1751635597789,7.34517957,150.37,150.34,6.65158972]
[1751635598676,1e-08,150.37,150.34,6.65158972]
[1751635598877,7.34517956,150.36,150.34,6.65158972]
[1751635599286,7.34517957,150.37,150.34,6.65158972]
[1751635600901,7.34517957,150.37,150.33,13.99704717]
[1751635601098,1e-08,150.37,150.33,6.65186761]
[1751635601397,1e-08,150.37,150.33,13.99704717]
[1751635601599,7.34517957,150.37,150.33,13.99704717]
[1751635601899,7.34517956,150.37,150.33,13.99704717]
[1751635602494,7.34517956,150.36,150.33,6.65186761]
[1751635608312,142.12874952,150.42,150.33,13.99704717]
[1751635608513,7.34517956,150.39,150.35,7.34517956]
[1751635608686,7.34517956,150.4,150.36,7.34517956]
[1751635608994,7.34517956,150.4,150.35,7.34517956]
[1751635609193,142.12874952,150.42,150.35,7.34517956]
[1751635609194,7.34517956,150.39,150.35,7.34517956]
[1751635610103,7.34517956,150.39,150.36,6.65070497]
[1751635611100,148.7769418,150.42,150.36,6.65070497]
[1751635611305,7.34517956,150.4,150.36,6.65070497]
[1751635611491,148.7769418,150.42,150.36,6.65070497]
[1751635611809,7.34517956,150.4,150.36,13.99588453]
[1751635612692,7.34517956,150.4,150.36,6.65070497]
[1751635613315,148.7769418,150.42,150.36,6.65070497]
[1751635613316,7.34517956,150.39,150.36,6.65070497]
[1751635615322,6.64864268,150.41,150.36,6.65070497]
[1751635615503,7.34517956,150.39,150.36,6.65070497]
[1751635617511,7.34517956,150.4,150.36,6.65070497]
[1751635618719,148.7769531,150.42,150.36,6.65070497]
[1751635618909,7.34517956,150.4,150.36,6.65070497]
[1751635619106,148.7769531,150.42,150.36,6.65070497]
[1751635619419,7.34517956,150.4,150.36,6.65070497]
[1751635620110,148.7769531,150.42,150.36,6.65070497]
[1751635620310,7.34517956,150.4,150.36,6.65070497]
[1751635620911,6.64855689,150.41,150.34,7.34517956]
[1751635620912,7.34517956,150.38,150.34,7.34517956]
[1751635621219,7.34517956,150.36,150.33,7.32]
[1751635621592,7.34517956,150.35,150.33,7.32]
[1751635624820,7.34517956,150.35,150.33,13.97202594]
[1751635626204,6.65037182,150.37,150.33,7.32]
[1751635626205,7.34517956,150.34,150.33,7.32]
[1751635626717,7.34517956,150.34,150.3,6.65306175]
[1751635626916,7.34517956,150.33,150.3,6.65306175]
[1751635627599,7.34517956,150.33,150.29,13.9989822]
[1751635627808,7.34517956,150.34,150.3,7.34517956]
[1751635628002,6.1395,150.38,150.32,7.34517956]
[1751635628207,7.34517956,150.36,150.32,7.34517956]
[1751635629607,7.34517956,150.37,150.33,6.65203219]
[1751635630621,7.34517956,150.37,150.33,30.62729223]
[1751635630802,6.64868524,150.41,150.33,30.62729223]
[1751635630803,7.34517956,150.38,150.33,30.62729223]
[1751635631416,6.64868524,150.41,150.33,30.62729223]
[1751635631417,7.34517956,150.37,150.33,30.62729223]
[1751635632320,7.34517956,150.36,150.33,23.28211267]
[1751635634351,6.64941406,150.39,150.33,23.28211267]
[1751635634516,7.34517956,150.37,150.33,23.97526004]
[1751635636128,7.34517956,150.37,150.33,30.62729223]
[1751635640039,7.34517956,150.36,150.32,6.65247472]
[1751635640332,7.34517956,150.34,150.32,6.65247472]
[1751635640534,7.34517956,150.33,150.32,6.65247472]
[1751635640832,7.34517956,150.33,150.31,13.97282945]
[1751635641538,7.34517956,150.33,150.31,6.65282945]
[1751635641924,6.65070497,150.36,150.3,6.65335994]
[1751635642112,7.34517956,150.33,150.3,6.65335994]
[1751635644509,7.6107,150.37,150.3,30.63193936]
[1751635644721,7.6107,150.37,150.31,7.34517956]
[1751635644722,7.34517956,150.35,150.31,7.34517956]
[1751635644927,7.34517956,150.37,150.33,7.34517956]
[1751635645340,14.35925339,150.41,150.33,7.34517956]
[1751635645536,7.34517956,150.37,150.33,7.34517956]
[1751635645737,7.34517956,150.37,150.34,6.65158972]
[1751635648740,13.99414378,150.4,150.33,6.65203219]
[1751635649036,7.34517956,150.36,150.33,6.65203219]
[1751635651638,7.34517956,150.35,150.33,6.65203219]
[1751635651943,7.34517956,150.34,150.32,6.65230758]
[1751635652328,7.34517956,150.33,150.28,6.6542454]
[1751635652543,7.34517956,150.4,150.28,13.99942496]
[1751635652544,7.34517956,150.32,150.28,13.99942496]
[1751635653339,7.34517956,150.33,150.28,13.99942496]
[1751635653522,7.34517956,150.32,150.28,6.6542454]
[1751635653918,6.65169978,150.34,150.28,6.6542454]
[1751635654145,7.34517956,150.3,150.28,6.6542454]
[1751635656449,7.34517956,150.3,150.27,13.85451843]
[1751635656831,7.34517956,150.29,150.27,13.85451843]
[1751635657229,7.34517956,150.28,150.27,7.2]
[1751635657646,7.34517956,150.28,150.26,0.1]
[1751635658829,7.34517956,150.27,150.26,0.1]
[1751635663233,8.21464543,150.3,150.26,0.1]
[1751635663451,7.34517956,150.27,150.26,0.1]
[1751635664738,6.65391236,150.29,150.26,0.1]
[1751635664939,7.34517956,150.27,150.26,0.1]
[1751635669243,13.99986778,150.27,150.26,0.1]
[1751635673142,7.34517956,150.27,150.26,0.1]
[1751635673345,13.99986778,150.27,150.26,0.1]
[1751635675863,1.5612,150.3,150.26,0.1]
[1751635676152,7.34517956,150.27,150.26,0.1]
[1751635679260,13.99986778,150.27,150.26,0.1]
[1751635680260,7.34517956,150.27,150.26,0.1]
[1751635681155,6.65380264,150.29,150.26,0.1]
[1751635681364,7.34517956,150.27,150.26,0.1]
[1751635683452,13.99986778,150.27,150.26,0.1]
[1751635685462,7.34517956,150.27,150.26,0.1]
[1751635687965,8.21471724,150.3,150.26,23.39295886]
[1751635687966,7.34517956,150.3,150.26,23.39295886]
[1751635688176,7.34517956,150.3,150.26,30.73813842]
[1751635690764,7.34517956,150.3,150.26,6.7551311]
[1751635691069,7.34517956,150.29,150.26,6.7551311]
[1751635691453,7.34517956,150.28,150.26,6.7551311]
[1751635691668,7.34517956,150.28,150.26,0.1]
[1751635691982,7.34517956,150.28,150.26,6.75508857]
[1751635693748,6.6529173,150.31,150.26,0.1]
[1751635693949,7.34517956,150.28,150.26,0.1]
[1751635697365,7.34517956,150.28,150.26,6.75513057]
[1751635698666,7.34517956,150.29,150.26,6.75513057]
[1751635699573,140.59474952,150.32,150.27,7.34517956]
[1751635699779,7.34517956,150.28,150.26,6.75513057]
[1751635700382,154.59241032,150.32,150.26,0.1]
[1751635700383,7.34517956,150.27,150.26,0.1]
[1751635704080,147.93992908,150.32,150.26,6.75509325]
[1751635704081,7.34517956,150.28,150.26,6.75509325]
[1751635706083,147.93992908,150.32,150.27,7.34517956]
[1751635706283,7.34517956,150.31,150.27,7.34517956]
[1751635706896,7.34517956,150.31,150.26,23.39292101]
[1751635706897,7.34517956,150.29,150.26,23.39292101]
[1751635707598,7.34517956,150.29,150.26,6.75509325]